bitfinex/quotes_SOLUSD_20240926
["timestamp","ask_amount","ask_price","bid_price","bid_amount"]
[1727335623751,0.1729365,151.34,151.31,13.50207526]
[1727335623946,0.1729365,151.34,151.28,6.6099]
[1727335624152,0.1729365,151.34,151.28,13.50207526]
[1727335624451,6.6084,151.33,151.28,20.11207526]
[1727335624625,6.6084,151.33,151.29,13.50207526]
[1727335625050,6.6085,151.32,151.27,6.6106]
[1727335625228,6.6085,151.32,151.29,13.50207526]
[1727335626142,6.6081,151.33,151.29,13.50207526]
[1727335626948,6.6081,151.33,151.28,20.11227526]
[1727335634329,0.12549,151.33,151.26,16.5273]
[1727335634568,16.81958,151.33,151.26,16.5273]
[1727335634729,16.81958,151.33,151.26,37.96251626]
[1727335635340,16.81958,151.33,151.26,36.64047526]
[1727335636161,6.609,151.31,151.26,36.64047526]
[1727335636460,6.609,151.31,151.27,6.6106]
[1727335636671,23.177,151.33,151.28,21.4342487]
[1727335636960,23.177,151.33,151.29,13.50207526]
[1727335640443,6.6086,151.32,151.29,13.50207526]
[1727335641939,6.6086,151.32,151.28,20.11227526]
[1727335642158,6.609,151.31,151.27,20.11267526]
[1727335642346,6.609,151.31,151.26,30.02937526]
[1727335643368,6.609,151.31,151.26,36.64037526]
[1727335643538,16.5686,151.33,151.26,16.5273]
[1727335643740,6.6097,151.3,151.26,16.5273]
[1727335644441,6.6098,151.29,151.25,13.50207526]
[1727335644655,6.6098,151.29,151.24,20.11397526]
[1727335645042,6.6104,151.28,151.24,20.11397526]
[1727335645249,6.6107,151.27,151.23,36.64497526]
[1727335645662,6.6111,151.26,151.22,6.6127]
[1727335645835,6.6111,151.26,151.22,20.11477526]
[1727335646556,0.25098,151.3,151.25,13.50207526]
[1727335646557,6.6098,151.29,151.25,13.50207526]
[1727335649479,6.3885,151.31,151.26,14.82427601]
[1727335649772,6.6094,151.3,151.26,13.50207526]
[1727335650472,6.6098,151.29,151.26,13.50207526]
[1727335651173,6.6094,151.3,151.26,13.50207526]
[1727335653273,6.6101,151.29,151.25,13.50207526]
[1727335653855,6.3885,151.31,151.24,30.03147526]
[1727335654055,6.6106,151.28,151.24,16.5294]
[1727335654482,6.6108,151.27,151.23,20.11437526]
[1727335655651,6.6108,151.27,151.23,13.50207526]
[1727335655857,6.3885,151.31,151.22,20.11477526]
[1727335656065,6.6112,151.26,151.22,20.11477526]
[1727335657089,6.6112,151.26,151.22,13.50207526]
[1727335657286,6.6115,151.25,151.21,36.64797526]
[1727335657661,6.6112,151.26,151.21,36.64797526]
[1727335657890,6.6112,151.26,151.22,13.50207526]
[1727335660470,6.6112,151.26,151.21,36.64797526]
[1727335660674,6.6116,151.25,151.21,36.64797526]
[1727335661388,6.6116,151.25,151.21,30.03487526]
[1727335663373,6.6116,151.25,151.21,36.64807526]
[1727335663571,15.7198,151.27,151.21,30.03487526]
[1727335663770,15.7198,151.27,151.22,20.11457526]
[1727335663978,6.6111,151.26,151.22,20.11457526]
[1727335664380,6.6117,151.25,151.21,30.03487526]
[1727335664974,6.6117,151.25,151.22,13.50207526]
[1727335666293,6.6117,151.25,151.21,36.64797526]
[1727335668189,6.6117,151.25,151.21,23.1459]
[1727335668393,15.7198,151.27,151.2,0.2566507]
[1727335668394,6.6121,151.24,151.2,0.2566507]
[1727335668700,6.6121,151.24,151.2,20.37232596]
[1727335668989,6.6121,151.24,151.2,6.8702507]
[1727335669195,6.6121,151.24,151.2,20.37232596]
[1727335669873,6.6121,151.24,151.2,6.8702507]
[1727335670070,6.6121,151.24,151.2,20.37232596]
[1727335671269,6.6124,151.23,151.2,13.75872596]
[1727335671469,6.6124,151.23,151.2,0.2566507]
[1727335672096,6.6121,151.24,151.2,0.2566507]
[1727335673478,6.4687,151.25,151.2,0.2566507]
[1727335673680,6.6124,151.23,151.2,0.2566507]
[1727335674898,6.613,151.22,151.2,0.2566507]
[1727335675078,6.6133,151.21,151.2,0.2566507]
[1727335676190,6.6129,151.22,151.2,0.2566507]
[1727335693598,6.4687,151.25,151.2,13.75872596]
[1727335693599,6.6125,151.23,151.2,13.75872596]
[1727335694716,29.77208666,151.29,151.22,13.50207526]
[1727335695003,29.77208666,151.29,151.21,6.6129]
[1727335695004,6.6114,151.26,151.23,13.50207526]
[1727335695307,6.611,151.27,151.23,13.50207526]
[1727335695604,6.6121,151.24,151.2,0.2566507]
[1727335695779,42.7295,151.29,151.2,0.2566507]
[1727335695979,6.6121,151.24,151.2,0.2566507]
[1727335696807,6.6125,151.23,151.2,0.2566507]
[1727335697789,6.6128,151.22,151.2,0.2566507]
[1727335698600,6.6133,151.21,151.2,0.2566507]
[1727335705715,6.86428,151.21,151.2,0.2566507]
[1727335720017,70.521164,151.21,151.2,0.2566507]
[1727335731915,50.641164,151.21,151.2,0.2566507]
[1727335736314,26.86428,151.21,151.2,0.2566507]
[1727335749829,6.86488,151.2,151.18,14.8335507]
[1727335756441,6.73939,151.2,151.18,14.8335507]
[1727335757031,6.6139,151.2,151.18,14.8335507]
[1727335757840,24.027864,151.25,151.18,28.33562596]
[1727335758046,6.612,151.24,151.19,20.11607526]
[1727335759346,6.6125,151.23,151.19,20.11607526]
[1727335760954,6.6125,151.23,151.19,6.614]
[1727335761959,6.6125,151.23,151.18,34.95012596]
[1727335762953,0.25098,151.22,151.18,14.8335507]
[1727335763145,6.6134,151.21,151.18,14.8335507]
[1727335765650,6.73829,151.22,151.18,14.8335507]
[1727335766625,6.73829,151.22,151.18,34.95012596]
[1727335767455,23.902374,151.25,151.18,34.95012596]
[1727335767656,6.6125,151.23,151.18,34.95012596]
[1727335771253,0.12549,151.24,151.19,20.11607526]
[1727335771456,6.73759,151.24,151.2,13.50207526]
[1727335772173,6.73759,151.24,151.19,20.11607526]
[1727335772760,0.12549,151.24,151.19,20.11607526]
[1727335772942,6.6125,151.23,151.19,20.11607526]
[1727335783640,6.6125,151.23,151.19,6.614]
[1727335785766,6.6133,151.21,151.18,14.8335507]
[1727335786751,0.12549,151.23,151.18,14.8335507]
[1727335787049,6.6125,151.23,151.19,6.6141]
[1727335789669,6.6125,151.23,151.18,28.33562596]
[1727335789854,6.6125,151.23,151.18,34.95012596]
[1727335798968,0.12549,151.24,151.18,28.33562596]
[1727335799175,6.6133,151.21,151.18,14.8335507]
[1727335800673,6.6129,151.22,151.18,14.8335507]
[1727335802165,6.6125,151.23,151.18,29.65848421]
[1727335802364,20.0,151.26,151.21,13.50207526]
[1727335802571,3.7729041,151.28,151.19,36.65087526]
[1727335802572,6.612,151.24,151.19,36.65087526]
[1727335803575,6.6116,151.25,151.21,20.11527526]
[1727335803959,6.6116,151.25,151.21,13.50207526]
[1727335804472,0.12549,151.26,151.21,13.50207526]
[1727335804685,6.6111,151.26,151.22,13.50207526]
[1727335804879,0.25098,151.27,151.22,13.50207526]
[1727335804880,6.6103,151.28,151.23,35.52777526]
[1727335805058,6.6103,151.28,151.24,13.50207526]
[1727335805947,6.6107,151.27,151.23,35.52777526]
[1727335806348,9.60006348,151.27,151.2,6.6275]
[1727335806576,6.6137,151.2,151.15,22.1249507]
[1727335806974,0.12549,151.21,151.16,6.6154]
[1727335807181,6.73869,151.22,151.17,13.50207526]
[1727335807354,0.12549,151.22,151.17,20.11687526]
[1727335807856,6.6125,151.23,151.18,13.50207526]
[1727335808067,0.12549,151.24,151.19,13.50207526]
[1727335808268,0.25098,151.26,151.21,13.50207526]
[1727335808577,9.60006348,151.28,151.21,35.17517526]
[1727335808782,6.6107,151.27,151.23,13.50207526]
[1727335808977,6.6111,151.26,151.23,13.50207526]
[1727335809277,6.6111,151.26,151.21,41.49387526]
[1727335810186,6.6106,151.28,151.22,13.50207526]
[1727335811276,6.6106,151.28,151.23,13.50207526]
[1727335811479,6.6106,151.28,151.23,20.11417526]
[1727335812477,6.6107,151.27,151.22,20.11487526]
[1727335818372,6.6107,151.27,151.23,6.6124]
[1727335818572,24.027864,151.3,151.23,20.11447526]
[1727335818871,6.6103,151.28,151.23,20.11447526]
[1727335819984,6.6098,151.29,151.24,20.11367526]
[1727335822685,6.6103,151.28,151.23,36.64537526]
[1727335824066,6.6103,151.28,151.23,36.60029358]
[1727335826272,6.6103,151.28,151.25,13.45699358]
[1727335830673,6.6108,151.27,151.23,29.98799358]
[1727335833791,20.2566507,151.31,151.25,13.45699358]
[1727335834096,6.6099,151.29,151.25,20.06839358]
[1727335835899,20.2566507,151.31,151.25,13.45699358]
[1727335836208,6.6106,151.28,151.25,13.45456724]
[1727335838409,6.6115,151.25,151.21,21.3786]
[1727335838571,6.612,151.24,151.21,15.0598]
[1727335838774,6.612,151.24,151.21,28.51436724]
[1727335838970,6.6116,151.25,151.21,28.51436724]
[1727335839193,6.6116,151.25,151.22,13.45456724]
[1727335840098,6.6112,151.26,151.22,13.45456724]
[1727335840883,6.6112,151.26,151.23,13.45456724]
[1727335844479,6.6112,151.26,151.23,12.23433258]
[1727335845282,0.12549,151.29,151.23,12.23433258]
[1727335845482,6.6107,151.27,151.23,12.23433258]
[1727335845688,6.73569,151.29,151.24,6.6116]
[1727335845883,6.6103,151.28,151.24,6.6116]
[1727335846083,6.6103,151.28,151.23,18.84663258]
[1727335848582,0.2566507,151.31,151.25,12.23433258]
[1727335848787,6.6097,151.3,151.27,12.23433258]
[1727335849200,6.8656507,151.31,151.27,12.23433258]
[1727335850209,6.6094,151.3,151.27,12.23433258]
[1727335850377,0.2566507,151.31,151.26,16.1615]
[1727335850578,0.25098,151.3,151.23,13.0202]
[1727335850877,6.6103,151.28,151.23,25.25453258]
[1727335851280,6.6107,151.27,151.23,25.25453258]
[1727335851710,6.6107,151.27,151.23,18.64223258]
[1727335852010,6.6107,151.27,151.23,12.23433258]
[1727335853610,6.6113,151.26,151.22,21.9]
[1727335853805,6.6121,151.24,151.22,15.2873]
[1727335854509,6.6116,151.25,151.22,15.2873]
[1727335855007,6.6116,151.25,151.2,6.6135]
[1727335855008,6.6123,151.24,151.19,25.24823258]
[1727335855382,6.6125,151.23,151.18,38.9319]
[1727335855593,44.027864,151.26,151.18,15.7814]
[1727335855790,6.6137,151.2,151.18,15.7814]
[1727335857300,6.6133,151.21,151.18,15.7814]
[1727335857987,6.6133,151.21,151.16,6.6154]
[1727335860522,6.6138,151.2,151.15,42.08858328]
[1727335860716,6.6142,151.19,151.15,16.7961507]
[1727335861211,6.6134,151.21,151.16,20.17246142]
[1727335862409,6.6134,151.21,151.16,18.84943258]
[1727335864110,6.6134,151.21,151.16,20.17234569]
[1727335866416,6.6134,151.21,151.16,18.84943258]
[1727335868688,6.6134,151.21,151.16,20.17234303]
[1727335869017,6.6134,151.21,151.17,6.6149]
[1727335869732,6.6134,151.21,151.17,7.93774552]
[1727335869916,6.6134,151.21,151.17,6.6149]
[1727335872806,6.6129,151.22,151.17,6.6149]
[1727335874601,6.6129,151.22,151.17,7.93767792]
[1727335875425,16.5296,151.25,151.16,18.78683258]
[1727335875607,6.6151,151.17,151.15,0.2566507]
[1727335875917,6.6147,151.18,151.15,0.2566507]
[1727335876801,6.4147,151.18,151.15,0.2566507]
[1727335880104,6.6142,151.19,151.15,0.2566507]
[1727335883515,6.6142,151.19,151.15,1.579708]
[1727335883720,6.6142,151.19,151.15,8.195508]
[1727335884024,6.6142,151.19,151.15,6.8724507]
[1727335884330,6.6142,151.19,151.15,0.2566507]
[1727335886126,6.6134,151.21,151.17,6.615]
[1727335886822,6.6134,151.21,151.17,7.93780908]
[1727335887424,36.5282,151.26,151.18,20.17164156]
[1727335887623,6.6129,151.22,151.18,18.84883258]
[1727335889119,36.5282,151.26,151.16,16.5381]
[1727335889324,0.12549,151.22,151.16,16.5381]
[1727335889628,6.6138,151.2,151.16,16.5381]
[1727335892122,6.73979,151.19,151.15,0.2566507]
[1727335892331,6.6143,151.19,151.15,0.2566507]
[1727335893025,0.12549,151.21,151.15,0.2566507]
[1727335893330,6.615,151.17,151.15,0.2566507]
[1727335894410,6.6147,151.18,151.15,0.2566507]
[1727335897531,0.12549,151.21,151.15,0.2566507]
[1727335897726,6.6144,151.19,151.15,0.2566507]
[1727335898720,0.12549,151.2,151.15,0.2566507]
[1727335899032,6.73969,151.19,151.15,6.8721507]
[1727335900032,6.73969,151.19,151.15,0.2566507]
[1727335901035,6.6142,151.19,151.15,0.2566507]
[1727335907638,6.6147,151.18,151.15,0.2566507]
[1727335921944,6.6151,151.17,151.15,0.2566507]
[1727335922130,0.12549,151.19,151.15,0.2566507]
[1727335922131,6.6147,151.18,151.15,0.2566507]
[1727335923233,6.73979,151.19,151.15,0.2566507]
[1727335928751,6.6151,151.17,151.15,0.2566507]
[1727335932325,6.73969,151.19,151.15,0.2566507]
[1727335932549,6.6138,151.2,151.16,7.9384452]
[1727335933049,6.6138,151.2,151.16,6.6154]
[1727335935951,6.6138,151.2,151.16,18.86185161]
[1727335937756,6.6138,151.2,151.16,12.24645161]
[1727335939832,0.25098,151.21,151.15,0.2566507]
[1727335940036,6.6145,151.19,151.15,0.2566507]
[1727335940463,6.6145,151.19,151.15,6.8724507]
[1727335942351,6.6145,151.19,151.15,0.2566507]
[1727335943945,24.027864,151.22,151.15,0.2566507]
[1727335944141,6.6149,151.18,151.15,0.2566507]
[1727335950257,6.74099,151.16,151.15,0.2566507]
[1727335950460,26.86648,151.16,151.15,0.2566507]
[1727335950755,50.643364,151.16,151.15,0.2566507]
[1727335952047,26.86648,151.16,151.15,0.2566507]
[1727335952256,6.6155,151.16,151.15,0.2566507]
[1727335952566,6.6151,151.17,151.15,0.2566507]
[1727335957169,0.12549,151.18,151.15,0.2566507]
[1727335957545,6.74009,151.18,151.15,0.2566507]
[1727335971683,6.6155,151.16,151.15,0.2566507]
[1727335972666,6.86648,151.16,151.15,0.2566507]
[1727335988298,50.643364,151.16,151.15,0.2566507]
[1727335989824,50.643364,151.16,151.15,5.07e-05]
[1727335991187,70.543364,151.16,151.15,5.07e-05]
[1727335991495,70.543364,151.16,151.11,0.2566507]
[1727335991496,50.645064,151.12,151.11,0.2566507]
[1727335992579,50.645064,151.12,151.11,5.07e-05]
[1727335992777,60.24512748,151.12,151.11,5.07e-05]
[1727335994202,80.14512748,151.12,151.11,5.07e-05]
[1727335994877,50.645964,151.1,151.09,0.1110175]
[1727335995296,50.645964,151.1,151.09,1.75e-05]
[1727335995478,60.24602748,151.1,151.09,1.75e-05]
[1727335996279,6.87168,151.04,151.03,0.3268855]
[1727336000708,6.6203,151.05,151.03,0.3268855]
[1727336000999,6.6199,151.06,151.03,0.3268855]
[1727336001201,6.6191,151.08,151.03,25.47263711]
[1727336002194,6.6191,151.08,151.03,26.79669281]
[1727336002800,6.6191,151.08,151.04,15.1208]
[1727336002801,0.25098,151.07,151.04,15.1208]
[1727336003100,6.6191,151.08,151.04,15.1208]
[1727336003682,0.12549,151.09,151.04,15.1208]
[1727336003884,6.6203,151.05,151.04,15.1208]
[1727336004406,6.6199,151.06,151.04,15.1208]
[1727336010102,9.60006348,151.11,151.04,15.1208]
[1727336010103,0.25098,151.08,151.04,15.1208]
[1727336010288,0.25098,151.06,151.04,15.1208]
[1727336010795,6.87088,151.06,151.04,15.1208]
[1727336013314,6.6199,151.06,151.04,15.1208]
[1727336025915,6.6199,151.06,151.03,0.3268855]
[1727336038917,0.12549,151.07,151.03,12.57333711]
[1727336039115,6.74489,151.07,151.03,13.89745185]
[1727336039336,20.0,151.12,151.05,12.24645161]
[1727336039642,6.6173,151.12,151.08,12.24645161]
[1727336039936,6.6177,151.11,151.08,12.24645161]
[1727336040445,6.6173,151.12,151.07,6.6193]
[1727336040646,6.6173,151.12,151.07,18.86575161]
[1727336041027,0.12549,151.11,151.07,18.86575161]
[1727336042630,6.6173,151.12,151.08,1.32366417]
[1727336042929,6.6173,151.12,151.08,6.6189]
[1727336043622,6.6168,151.13,151.09,12.24645161]
[1727336044357,6.86738,151.14,151.1,1.32351227]
[1727336044640,20.0,151.17,151.11,12.24645161]
[1727336044855,32.8836,151.19,151.13,12.24645161]
[1727336045138,6.6156,151.16,151.13,12.24645161]
[1727336045921,6.6159,151.15,151.11,12.24645161]
[1727336052344,6.6164,151.14,151.11,12.24645161]
[1727336052658,6.6168,151.13,151.1,28.67145161]
[1727336053147,6.74129,151.16,151.12,12.24645161]
[1727336053357,6.74129,151.16,151.13,1.32323061]
[1727336054638,6.6142,151.19,151.15,6.6157]
[1727336054842,0.2574725,151.2,151.17,12.24645161]
[1727336054843,6.8712725,151.2,151.17,12.24645161]
[1727336055756,6.6143,151.19,151.16,15.7819]
[1727336055926,6.8714725,151.2,151.16,15.7819]
[1727336056357,6.6142,151.19,151.16,15.7819]
[1727336057442,0.2574725,151.2,151.17,12.24645161]
[1727336057642,6.8712725,151.2,151.17,12.24645161]
[1727336060055,6.6142,151.19,151.16,15.7819]
[1727336063431,0.12549,151.19,151.16,15.7819]
[1727336063758,6.6146,151.18,151.16,15.7819]
[1727336064971,6.6146,151.18,151.15,12.24645161]
[1727336065135,6.6152,151.17,151.15,12.24645161]
[1727336065335,6.6152,151.17,151.13,23.1582]
[1727336065336,6.6152,151.17,151.13,28.78795161]
[1727336066759,6.6152,151.17,151.15,12.24645161]
[1727336067065,6.73969,151.19,151.15,12.24645161]
[1727336067248,6.73969,151.19,151.17,12.24645161]
[1727336073659,0.2574725,151.2,151.17,12.24645161]
[1727336074077,0.2574725,151.2,151.17,13.5693413]
[1727336074366,0.2574725,151.2,151.17,12.24645161]
[1727336075961,6.8712725,151.2,151.17,12.24645161]
[1727336081873,6.8712725,151.2,151.15,35.40145161]
[1727336082076,6.6142,151.19,151.15,35.40145161]
[1727336082262,6.6142,151.19,151.16,12.24645161]
[1727336090253,6.6151,151.17,151.12,38.2793]
[1727336090456,6.6151,151.17,151.13,18.86315161]
[1727336090865,0.12549,151.19,151.13,12.24645161]
[1727336091071,6.6147,151.18,151.15,12.24645161]
[1727336091584,6.86528,151.19,151.15,12.24645161]
[1727336092870,6.86528,151.19,151.15,13.56944219]
[1727336094481,6.73979,151.19,151.15,12.24645161]
[1727336094661,6.73979,151.19,151.15,13.56940494]
[1727336094983,6.6143,151.19,151.15,18.86235161]
[1727336097171,6.6143,151.19,151.14,6.6163]
[1727336098680,6.6148,151.18,151.13,18.86305161]
[1727336100085,6.6156,151.16,151.12,23.1598]
[1727336100586,6.6151,151.17,151.12,23.1598]
[1727336100784,0.12549,151.16,151.09,16.5457]
[1727336100989,6.6173,151.12,151.06,39.5831]
[1727336101200,6.6173,151.12,151.07,11.94911314]
[1727336101489,6.6173,151.12,151.08,5.33011314]
[1727336101684,6.6173,151.12,151.07,18.86545161]
[1727336101881,6.6173,151.12,151.07,24.19669625]
[1727336102382,6.6173,151.12,151.07,18.86545161]
[1727336102691,6.6168,151.13,151.08,6.6189]
[1727336103770,6.6168,151.13,151.09,12.24645161]
[1727336104073,6.86738,151.14,151.09,18.86485161]
[1727336105881,6.86738,151.14,151.1,1.32351566]
[1727336106284,6.86738,151.14,151.1,1.32343091]
[1727336106880,6.74189,151.14,151.1,7.94151837]
[1727336107275,16.5372,151.18,151.1,7.94151837]
[1727336107276,6.616,151.15,151.1,7.94148225]
[1727336107593,6.616,151.15,151.11,12.24645161]
[1727336108788,6.616,151.15,151.12,1.32333253]
[1727336108991,0.25098,151.17,151.1,6.6181]
[1727336109198,6.6164,151.14,151.1,18.86455161]
[1727336112192,6.6159,151.15,151.1,18.86455161]
[1727336112382,6.6159,151.15,151.11,1.32333407]
[1727336112896,6.6159,151.15,151.1,18.86455161]
[1727336113889,6.6159,151.15,151.11,1.32333351]
[1727336114295,6.6159,151.15,151.1,18.86455161]
[1727336115103,6.6159,151.15,151.11,1.32333408]
[1727336115697,6.6159,151.15,151.1,18.86455161]
[1727336116209,6.6159,151.15,151.11,6.6175]
[1727336116701,6.6159,151.15,151.11,20.0964756]
[1727336116893,6.6159,151.15,151.11,13.4789756]
[1727336117604,6.6165,151.14,151.11,13.4789756]
[1727336121705,6.6165,151.14,151.09,20.0973756]
[1727336122705,0.12549,151.14,151.09,13.4789756]
[1727336122903,6.6166,151.14,151.09,20.0971756]
[1727336128503,6.6173,151.12,151.08,16.5466]
[1727336128982,6.6173,151.12,151.08,23.1653]
[1727336129984,6.6169,151.13,151.08,23.1653]
[1727336130307,6.6174,151.12,151.08,36.6442756]
[1727336130806,6.6169,151.13,151.08,36.6442756]
[1727336131408,6.86848,151.12,151.08,16.5466]
[1727336131596,6.74299,151.12,151.08,16.5466]
[1727336133686,6.618,151.11,151.06,6.6198]
[1727336133887,6.618,151.11,151.06,20.0987756]
[1727336134318,6.6187,151.09,151.05,16.5503]
[1727336140321,0.12549,151.1,151.02,39.339]
[1727336140494,6.619,151.08,151.04,13.4789756]
[1727336142625,6.619,151.08,151.04,20.0995756]
[1727336145921,6.619,151.08,151.04,6.6206]
[1727336148120,0.12549,151.1,151.04,6.6206]
[1727336148323,6.6186,151.09,151.04,6.6206]
[1727336149322,0.12549,151.1,151.06,6.6197]
[1727336149497,0.12549,151.1,151.07,14.80270346]
[1727336150726,6.74369,151.1,151.07,9.80270346]
[1727336151930,6.74369,151.1,151.07,11.12644157]
[1727336152107,6.74369,151.1,151.07,9.80270346]
[1727336152309,6.74369,151.1,151.07,11.12644212]
[1727336153203,6.74369,151.1,151.07,9.80270346]
[1727336155031,6.74369,151.1,151.06,6.6197]
[1727336155231,7.94232786,151.09,151.05,6.6202]
[1727336155529,6.6186,151.09,151.05,6.6202]
[1727336157222,6.74359,151.1,151.06,20.0987756]
[1727336157431,6.6172,151.12,151.08,13.4789756]
[1727336157913,6.6172,151.12,151.06,16.5487]
[1727336157914,6.6172,151.12,151.07,6.6193]
[1727336158112,7.94162786,151.11,151.07,6.6193]
[1727336158316,6.6179,151.11,151.07,6.6193]
[1727336161513,6.6167,151.14,151.1,20.0970756]
[1727336162030,6.6167,151.14,151.1,13.4789756]
[1727336163214,6.38399,151.15,151.1,14.80239743]
[1727336163423,6.6154,151.17,151.12,20.0959756]
[1727336163635,15.6037,151.18,151.12,21.41918707]
[1727336163930,6.6151,151.17,151.12,21.41918707]
[1727336165842,13.1444,151.19,151.14,20.0952756]
[1727336166046,1.32372786,151.18,151.13,23.1586]
[1727336166221,6.615,151.17,151.13,23.1586]
[1727336166533,6.615,151.17,151.13,16.5419]
[1727336167613,0.25098,151.17,151.13,23.1586]
[1727336167810,0.12549,151.17,151.13,23.1586]
[1727336168127,6.74049,151.17,151.13,23.1586]
[1727336168835,6.74049,151.17,151.13,16.5419]
[1727336169338,0.12549,151.16,151.08,6.5295]
[1727336169536,8.06481786,151.16,151.11,20.0965756]
[1727336169837,6.74109,151.16,151.11,20.0965756]
[1727336170839,6.74109,151.16,151.12,6.6172]
[1727336171030,6.74059,151.17,151.13,13.4789756]
[1727336171415,6.74059,151.17,151.13,14.80211789]
[1727336171633,6.74059,151.17,151.13,21.41881789]
[1727336173719,0.12549,151.15,151.1,16.5451]
[1727336173934,6.74149,151.15,151.1,36.6421756]
[1727336175742,0.12549,151.13,151.07,32.9472]
[1727336176326,6.6174,151.12,151.07,39.5663]
[1727336176721,6.6174,151.12,151.08,6.6189]
[1727336177747,0.12549,151.13,151.08,6.6189]
[1727336177942,6.74239,151.13,151.08,6.6189]
[1727336178428,0.12549,151.13,151.07,32.9472]
[1727336178629,6.6174,151.12,151.07,30.0269756]
[1727336178830,6.6174,151.12,151.08,6.619]
[1727336179959,0.12549,151.13,151.08,6.619]
[1727336180147,6.74239,151.13,151.08,6.619]
[1727336180446,7.94132786,151.12,151.07,16.548]
[1727336180619,7.94132786,151.12,151.05,6.6202]
[1727336180620,6.6181,151.1,151.05,6.6202]
[1727336180823,0.12549,151.11,151.06,6.6198]
[1727336181137,6.2627,151.13,151.07,14.80271278]
[1727336181448,0.25098,151.12,151.09,13.4789756]
[1727336181853,0.25098,151.12,151.09,13.48308363]
[1727336182039,6.6168,151.13,151.09,13.48308363]
[1727336185740,6.6168,151.13,151.09,20.10158363]
[1727336191458,1.44921786,151.12,151.08,6.6188]
[1727336194532,8.06651786,151.12,151.08,6.6188]
[1727336194831,6.74279,151.12,151.08,6.6188]
[1727336195026,0.12549,151.12,151.06,16.549]
[1727336195231,0.12549,151.11,151.06,23.1684]
[1727336195440,0.12549,151.1,151.06,23.1684]
[1727336196557,6.74369,151.1,151.06,23.1684]
[1727336197552,0.12549,151.1,151.06,36.65405797]
[1727336198459,6.74359,151.1,151.06,23.1684]
[1727336198639,1.32372786,151.09,151.06,16.549]
[1727336198834,7.94222786,151.09,151.06,16.549]
[1727336199029,6.74459,151.08,151.03,16.8794855]
[1727336199257,8.06831786,151.08,151.03,16.8794855]
[1727336199555,6.74459,151.08,151.04,6.6206]
[1727336199761,0.12549,151.08,151.05,14.80958312]
[1727336200549,0.12549,151.08,151.05,13.48565797]
[1727336203959,6.6186,151.09,151.05,20.10585797]
[1727336204455,6.6186,151.09,151.05,6.6202]
[1727336204857,6.74369,151.1,151.05,6.6202]
[1727336205058,6.74369,151.1,151.05,20.10585797]
[1727336206456,0.12549,151.1,151.05,13.48565797]
[1727336206654,6.3955,151.12,151.08,13.48565797]
[1727336206840,28.837,151.16,151.1,13.48565797]
[1727336207044,22.2211,151.16,151.11,7.94100775]
[1727336207247,6.6155,151.16,151.12,20.10285797]
[1727336207965,6.6155,151.16,151.12,13.48565797]
[1727336209242,6.74059,151.17,151.13,1.32327697]
[1727336209566,22.4785725,151.2,151.14,14.8088665]
[1727336209868,1.32372786,151.19,151.14,13.48565797]
[1727336210244,0.2574725,151.2,151.14,13.48565797]
[1727336210463,6.8711725,151.2,151.15,6.6158]
[1727336210638,8.19490036,151.2,151.15,6.6158]
[1727336211045,6.8711725,151.2,151.15,6.6158]
[1727336211568,0.12549,151.19,151.15,6.6158]
[1727336212067,1.44921786,151.19,151.14,13.48565797]
[1727336212272,8.06351786,151.19,151.14,20.10195797]
[1727336212470,8.06351786,151.19,151.14,13.48565797]
[1727336212845,6.74019,151.18,151.13,23.1578]
[1727336213052,0.12549,151.19,151.13,16.5411]
[1727336213262,8.06351786,151.19,151.14,6.6162]
[1727336213463,6.73979,151.19,151.14,6.6162]
[1727336214348,0.12549,151.19,151.15,20.10145797]
[1727336215056,0.12549,151.19,151.15,13.48565797]
[1727336215057,8.06341786,151.19,151.15,13.48565797]
[1727336217074,0.2574725,151.2,151.16,6.6154]
[1727336217475,0.2574725,151.2,151.17,1.32291495]
[1727336217670,0.2574725,151.2,151.16,7.93825994]
[1727336218364,0.2574725,151.2,151.17,13.48565797]
[1727336226278,0.2574725,151.2,151.18,13.48565797]
[1727336226484,0.2574725,151.2,151.19,1.32267897]
[1727336228076,0.2574725,151.2,151.19,7.9367]